[Event "Queens Festival Final-C 2022"]
[Site "Tornelo"]
[Date "2022.06.25"]
[Round "8.2"]
[White "Orbe Vivero, Veronica Priscila"]
[Black "Sanudula, K M Dahamdi"]
[Result "0-1"]
[ECO "B01"]
[WhiteElo "1636"]
[BlackElo "1710"]
[Annotator "NA RC"]
[PlyCount "50"]
[EventDate "2022.06.24"]
[EventType "tourn"]
[EventCountry "NET"]
[SourceTitle "playchess.com"]
[Source "ChessBase"]
[SourceQuality "1"]
[TimeControl "180+2"]

1. e4 {[%emt 0:00:02]} d5 {[%emt 0:00:04]} 2. exd5 {[%emt 0:00:03]} Qxd5 {[%emt 0:00:02]} 3. Nc3 {[%emt 0:00:01]} Qa5 {[%emt 0:00:01]} 4. d4 {[%emt 0:00:02]} Nf6 {[%emt 0:00:01]} 5. Nf3 {[%emt 0:00:02]} Bg4 {[%emt 0:00:02]} 6. h3 {[%emt 0:00:02]} Bxf3 {[%emt 0:00:02]} 7. Qxf3 {[%emt 0:00:01]} c6 {[%emt 0:00:00]} 8. Bd2 {[%emt 0:00:04]} Qb6 {[%emt 0:00:01]} 9. Bc4 {[%emt 0:00:32]} Qxd4 {[%emt 0:00:09]} 10. Bb3 {[%emt 0:00:04]} e6 {[%emt 0:00:17]} 11. O-O-O {[%emt 0:00:04]} Qb6 {[%emt 0:00:02]} 12. Be3 {[%emt 0:00:10]} Qa5 {[%emt 0:00:02]} 13. Bd4 {[%emt 0:00:28]} Nbd7 {[%emt 0:00:05]} 14. Rhe1 {[%emt 0:00:08]} O-O-O {[%emt 0:00:17]} 15. g4 {[%emt 0:00:04]} h6 {[%emt 0:00:07]} 16. Ne4 {[%emt 0:00:43]} Be7 {[%emt 0:00:15]} 17. g5 {[%emt 0:00:15]} hxg5 {[%emt 0:00:02]} 18. Nxg5 {[%emt 0:00:02]} Qxg5+ {[%emt 0:00:02]} 19. Kb1 {[%emt 0:00:04]} Kb8 {[%emt 0:00:10]} 20. Rg1 {[%emt 0:00:03]} Qh5 {[%emt 0:00:09]} 21. Qg3+ {[%emt 0:00:10]} Ka8 {[%emt 0:00:03]} 22. Qc7 {[%emt 0:00:16]} Rc8 {[%emt 0:00:11]} 23. Qg3 {[%emt 0:00:07]} Bc5 {[%emt 0:00:06]} 24. Bxc5 {[%emt 0:00:18]} Nxc5 {[%emt 0:00:17]} 25. Qxg7 {[%emt 0:00:01]} Nfe4 {[%emt 0:00:08]} 0-1

[Event "Queens Festival Final-C 2022"]
[Site "Tornelo"]
[Date "2022.06.25"]
[Round "8.3"]
[White "Vicze, Zsofia"]
[Black "Lampard, Alice"]
[Result "1-0"]
[ECO "B38"]
[WhiteElo "1749"]
[BlackElo "1756"]
[Annotator "NA RC"]
[PlyCount "59"]
[EventDate "2022.06.24"]
[EventType "tourn"]
[EventCountry "NET"]
[SourceTitle "playchess.com"]
[Source "ChessBase"]
[SourceQuality "1"]
[TimeControl "180+2"]

1. e4 {[%emt 0:00:02]} c5 {[%emt 0:00:05]} 2. Nf3 {[%emt 0:00:02]} Nc6 {[%emt 0:00:01]} 3. c4 {[%emt 0:00:02]} g6 {[%emt 0:00:02]} 4. d4 {[%emt 0:00:02]} cxd4 {[%emt 0:00:02]} 5. Nxd4 {[%emt 0:00:02]} Bg7 {[%emt 0:00:01]} 6. Be3 {[%emt 0:00:02]} Qb6 {[%emt 0:00:01]} 7. Nb5 {[%emt 0:00:25]} Qd8 {[%emt 0:00:21]} 8. N1c3 {[%emt 0:00:09]} a6 {[%emt 0:00:05]} 9. Nd4 {[%emt 0:00:03]} d6 {[%emt 0:00:10]} 10. Be2 {[%emt 0:00:01]} Nf6 {[%emt 0:00:01]} 11. O-O {[%emt 0:00:03]} O-O {[%emt 0:00:02]} 12. Rc1 {[%emt 0:00:01]} Bd7 {[%emt 0:00:06]} 13. Kh1 {[%emt 0:00:12]} Rc8 {[%emt 0:00:02]} 14. b3 {[%emt 0:00:05]} Ne8 {[%emt 0:00:16]} 15. f4 {[%emt 0:00:08]} Nc7 {[%emt 0:00:23]} 16. Bf3 {[%emt 0:00:06]} Ne6 {[%emt 0:00:05]} 17. Nxe6 {[%emt 0:00:11]} fxe6 {[%emt 0:00:04]} 18. g3 {[%emt 0:00:04]} Qa5 {[%emt 0:00:09]} 19. Qd2 {[%emt 0:00:14]} b5 {[%emt 0:00:30]} 20. cxb5 {[%emt 0:00:11]} axb5 {[%emt 0:00:01]} 21. Ne2 {[%emt 0:00:01]} Ra8 {[%emt 0:00:14]} 22. Rc2 {[%emt 0:00:08]} Nb4 {[%emt 0:00:06]} 23. Bb6 {[%emt 0:00:20]} Qa3 {[%emt 0:00:16]} 24. Rc7 {[%emt 0:00:05]} Bc6 {[%emt 0:00:15]} 25. Rxe7 {[%emt 0:00:04]} Qxa2 {[%emt 0:00:06]} 26. Qxb4 {[%emt 0:00:04]} Rfb8 {[%emt 0:00:21]} 27. Bd4 {[%emt 0:00:04]} Ra7 {[%emt 0:00:01]} 28. Rxa7 {[%emt 0:00:03]} Qc2 {[%emt 0:00:03]} 29. Rxg7+ {[%emt 0:00:03]} Kf8 {[%emt 0:00:01]} 30. Qxd6+ {[%emt 0:00:02]} 1-0

[Event "Queens Festival Final-C 2022"]
[Site "Tornelo"]
[Date "2022.06.25"]
[Round "8.5"]
[White "Jimenez Salas, Maria Teresa"]
[Black "Davari, Sara"]
[Result "0-1"]
[ECO "C42"]
[WhiteElo "1813"]
[BlackElo "1674"]
[Annotator "NA RC"]
[PlyCount "122"]
[EventDate "2022.06.24"]
[EventType "tourn"]
[EventCountry "NET"]
[SourceTitle "playchess.com"]
[Source "ChessBase"]
[SourceQuality "1"]
[TimeControl "180+2"]

1. e4 {[%emt 0:00:02]} e5 {[%emt 0:00:04]} 2. Nf3 {[%emt 0:00:02]} Nf6 {[%emt 0:00:01]} 3. Nxe5 {[%emt 0:00:02]} d6 {[%emt 0:00:01]} 4. Nf3 {[%emt 0:00:02]} Nxe4 {[%emt 0:00:01]} 5. Nc3 {[%emt 0:00:01]} Nxc3 {[%emt 0:00:02]} 6. dxc3 {[%emt 0:00:00]} Be7 {[%emt 0:00:01]} 7. Be2 {[%emt 0:00:02]} Nc6 {[%emt 0:00:01]} 8. O-O {[%emt 0:00:01]} O-O {[%emt 0:00:02]} 9. Bf4 {[%emt 0:00:01]} Bf5 {[%emt 0:00:02]} 10. Qd2 {[%emt 0:00:04]} Qd7 {[%emt 0:00:02]} 11. Nd4 {[%emt 0:00:02]} Nxd4 {[%emt 0:00:02]} 12. cxd4 {[%emt 0:00:01]} d5 {[%emt 0:00:04]} 13. Rfe1 {[%emt 0:00:08]} Rfe8 {[%emt 0:00:02]} 14. Bf3 {[%emt 0:00:02]} Bf6 {[%emt 0:00:05]} 15. c3 {[%emt 0:00:02]} c6 {[%emt 0:00:01]} 16. h3 {[%emt 0:00:07]} h6 {[%emt 0:00:09]} 17. Be5 {[%emt 0:00:08]} Bxe5 {[%emt 0:00:07]} 18. dxe5 {[%emt 0:00:05]} Bg6 {[%emt 0:00:19]} 19. Rad1 {[%emt 0:00:08]} Qf5 {[%emt 0:00:13]} 20. Bg4 {[%emt 0:00:04]} Qc2 {[%emt 0:00:08]} 21. Qxc2 {[%emt 0:00:07]} Bxc2 {[%emt 0:00:01]} 22. Rd2 {[%emt 0:00:00]} Bg6 {[%emt 0:00:04]} 23. Rde2 {[%emt 0:00:07]} Be4 {[%emt 0:00:26]} 24. f3 {[%emt 0:00:02]} Bd3 {[%emt 0:00:13]} 25. Re3 {[%emt 0:00:01]} Bg6 {[%emt 0:00:02]} 26. h4 {[%emt 0:00:07]} h5 {[%emt 0:00:07]} 27. Bh3 {[%emt 0:00:01]} Re7 {[%emt 0:00:02]} 28. e6 {[%emt 0:00:13]} f5 {[%emt 0:00:35]} 29. f4 {[%emt 0:00:16]} Rf8 {[%emt 0:00:03]} 30. Re5 {[%emt 0:00:02]} Rf6 {[%emt 0:00:03]} 31. Kf2 {[%emt 0:00:13]} Kf8 {[%emt 0:00:06]} 32. b3 {[%emt 0:00:18]} Ke8 {[%emt 0:00:29]} 33. c4 {[%emt 0:00:01]} dxc4 {[%emt 0:00:02]} 34. bxc4 {[%emt 0:00:00]} Kd8 {[%emt 0:00:02]} 35. c5 {[%emt 0:00:21]} Kc7 {[%emt 0:00:03]} 36. R1e3 {[%emt 0:00:06]} Bh7 {[%emt 0:00:08]} 37. Ke2 {[%emt 0:00:03]} g6 {[%emt 0:00:04]} 38. Kd2 {[%emt 0:00:13]} Bg8 {[%emt 0:00:07]} 39. Ra3 {[%emt 0:00:02]} a6 {[%emt 0:00:03]} 40. Ree3 {[%emt 0:00:16]} Rfxe6 {[%emt 0:00:02]} 41. Red3 {[%emt 0:00:04]} Re2+ {[%emt 0:00:03]} 42. Kc3 {[%emt 0:00:01]} Rxa2 {[%emt 0:00:03]} 43. Rxa2 {[%emt 0:00:02]} Bxa2 {[%emt 0:00:01]} 44. Rd2 {[%emt 0:00:01]} Bd5 {[%emt 0:00:01]} 45. Rd3 {[%emt 0:00:03]} Re4 {[%emt 0:00:02]} 46. g3 {[%emt 0:00:02]} Rc4+ {[%emt 0:00:02]} 47. Kd2 {[%emt 0:00:02]} Rxc5 {[%emt 0:00:01]} 48. Re3 {[%emt 0:00:01]} Kd6 {[%emt 0:00:03]} 49. Bf1 {[%emt 0:00:02]} Be4 {[%emt 0:00:03]} 50. Rb3 {[%emt 0:00:03]} Kc7 {[%emt 0:00:05]} 51. Ke3 {[%emt 0:00:05]} Rd5 {[%emt 0:00:01]} 52. Bc4 {[%emt 0:00:03]} Rd7 {[%emt 0:00:02]} 53. Ra3 {[%emt 0:00:05]} b5 {[%emt 0:00:03]} 54. Be2 {[%emt 0:00:04]} Kb6 {[%emt 0:00:02]} 55. Bd1 {[%emt 0:00:03]} a5 {[%emt 0:00:01]} 56. Be2 {[%emt 0:00:03]} a4 {[%emt 0:00:02]} 57. Ra1 {[%emt 0:00:03]} c5 {[%emt 0:00:02]} 58. Bd1 {[%emt 0:00:05]} Ka5 {[%emt 0:00:01]} 59. Bb3 {[%emt 0:00:04]} Rd3+ {[%emt 0:00:02]} 60. Ke2 {[%emt 0:00:02]} Rxb3 {[%emt 0:00:02]} 61. Rd1 {[%emt 0:00:01]} Bf3+ {[%emt 0:00:02]} 0-1

[Event "Queens Festival Final-C 2022"]
[Site "Tornelo"]
[Date "2022.06.25"]
[Round "9.1"]
[White "Davari, Sara"]
[Black "Castillo Beitia, Ashley Alexandra"]
[Result "1-0"]
[ECO "B76"]
[WhiteElo "1674"]
[BlackElo "1620"]
[Annotator "NA RC"]
[PlyCount "107"]
[EventDate "2022.06.24"]
[EventType "tourn"]
[EventCountry "NET"]
[SourceTitle "playchess.com"]
[Source "ChessBase"]
[SourceQuality "1"]
[TimeControl "180+2"]

1. e4 {[%emt 0:00:02]} c5 {[%emt 0:00:11]} 2. Nf3 {[%emt 0:00:02]} d6 {[%emt 0:00:01]} 3. d4 {[%emt 0:00:01]} cxd4 {[%emt 0:00:03]} 4. Nxd4 {[%emt 0:00:01]} Nf6 {[%emt 0:00:01]} 5. Nc3 {[%emt 0:00:02]} g6 {[%emt 0:00:01]} 6. Be3 {[%emt 0:00:08]} Bg7 {[%emt 0:00:02]} 7. f3 {[%emt 0:00:02]} Nc6 {[%emt 0:00:01]} 8. Qd2 {[%emt 0:00:02]} O-O {[%emt 0:00:02]} 9. O-O-O {[%emt 0:00:01]} d5 {[%emt 0:00:01]} 10. exd5 {[%emt 0:00:05]} Nxd5 {[%emt 0:00:03]} 11. Nxc6 {[%emt 0:00:02]} bxc6 {[%emt 0:00:02]} 12. Bd4 {[%emt 0:00:01]} e5 {[%emt 0:00:03]} 13. Bc5 {[%emt 0:00:01]} Re8 {[%emt 0:00:01]} 14. Nxd5 {[%emt 0:00:04]} cxd5 {[%emt 0:00:04]} 15. Qxd5 {[%emt 0:00:03]} Qg5+ {[%emt 0:00:05]} 16. Qd2 {[%emt 0:00:10]} Qf6 {[%emt 0:00:19]} 17. Bb4 {[%emt 0:00:10]} Be6 {[%emt 0:00:08]} 18. Kb1 {[%emt 0:00:12]} Rab8 {[%emt 0:00:07]} 19. Bc3 {[%emt 0:00:05]} Qe7 {[%emt 0:00:09]} 20. Bd3 {[%emt 0:00:07]} Qb7 {[%emt 0:00:06]} 21. b3 {[%emt 0:00:05]} Rec8 {[%emt 0:00:07]} 22. Bb2 {[%emt 0:00:04]} Rd8 {[%emt 0:00:10]} 23. Qe2 {[%emt 0:00:06]} a5 {[%emt 0:00:06]} 24. Be4 {[%emt 0:00:04]} Qc7 {[%emt 0:00:04]} 25. Rxd8+ {[%emt 0:00:04]} Rxd8 {[%emt 0:00:02]} 26. Rd1 {[%emt 0:00:01]} f5 {[%emt 0:00:14]} 27. Rxd8+ {[%emt 0:00:13]} Qxd8 {[%emt 0:00:02]} 28. Bd3 {[%emt 0:00:23]} Qc7 {[%emt 0:00:08]} 29. Bc4 {[%emt 0:00:04]} Bxc4 {[%emt 0:00:04]} 30. Qxc4+ {[%emt 0:00:01]} Qxc4 {[%emt 0:00:03]} 31. bxc4 {[%emt 0:00:00]} Kf7 {[%emt 0:00:02]} 32. a4 {[%emt 0:00:04]} Ke6 {[%emt 0:00:01]} 33. Bc3 {[%emt 0:00:02]} Kd6 {[%emt 0:00:05]} 34. Kb2 {[%emt 0:00:07]} Kc5 {[%emt 0:00:07]} 35. Kb3 {[%emt 0:00:01]} g5 {[%emt 0:00:06]} 36. Bxa5 {[%emt 0:00:07]} g4 {[%emt 0:00:04]} 37. Bc3 {[%emt 0:00:04]} gxf3 {[%emt 0:00:03]} 38. gxf3 {[%emt 0:00:02]} e4 {[%emt 0:00:03]} 39. Bxg7 {[%emt 0:00:14]} exf3 {[%emt 0:00:01]} 40. c3 {[%emt 0:00:02]} Kc6 {[%emt 0:00:09]} 41. Bd4 {[%emt 0:00:01]} Kd6 {[%emt 0:00:06]} 42. a5 {[%emt 0:00:03]} Kc6 {[%emt 0:00:01]} 43. Kc2 {[%emt 0:00:01]} Kb7 {[%emt 0:00:02]} 44. Kd3 {[%emt 0:00:01]} Ka6 {[%emt 0:00:02]} 45. Ke3 {[%emt 0:00:01]} Kxa5 {[%emt 0:00:01]} 46. Kxf3 {[%emt 0:00:01]} Ka6 {[%emt 0:00:03]} 47. Kf4 {[%emt 0:00:01]} Kb7 {[%emt 0:00:01]} 48. Kxf5 {[%emt 0:00:01]} Kc6 {[%emt 0:00:01]} 49. Kf6 {[%emt 0:00:01]} Kd6 {[%emt 0:00:01]} 50. Kg7 {[%emt 0:00:01]} h5 {[%emt 0:00:02]} 51. h4 {[%emt 0:00:02]} Ke6 {[%emt 0:00:02]} 52. Kh6 {[%emt 0:00:01]} Kf5 {[%emt 0:00:01]} 53. Kxh5 {[%emt 0:00:01]} Ke6 {[%emt 0:00:01]} 54. Kg6 {[%emt 0:00:01]} 1-0

[Event "Queens Festival Final-C 2022"]
[Site "Tornelo"]
[Date "2022.06.25"]
[Round "9.2"]
[White "Stadlinger, Lea"]
[Black "Jimenez Salas, Maria Teresa"]
[Result "0-1"]
[ECO "B56"]
[WhiteElo "1723"]
[BlackElo "1813"]
[Annotator "NA RC"]
[PlyCount "64"]
[EventDate "2022.06.24"]
[EventType "tourn"]
[EventCountry "NET"]
[SourceTitle "playchess.com"]
[Source "ChessBase"]
[SourceQuality "1"]
[TimeControl "180+2"]

1. e4 {[%emt 0:00:02]} c5 {[%emt 0:00:05]} 2. Nf3 {[%emt 0:00:02]} Nc6 {[%emt 0:00:02]} 3. d4 {[%emt 0:00:01]} cxd4 {[%emt 0:00:01]} 4. Nxd4 {[%emt 0:00:01]} Nf6 {[%emt 0:00:00]} 5. Nc3 {[%emt 0:00:01]} d6 {[%emt 0:00:01]} 6. Be3 {[%emt 0:00:02]} Ng4 {[%emt 0:00:02]} 7. Be2 {[%emt 0:00:16]} Nxe3 {[%emt 0:00:01]} 8. fxe3 {[%emt 0:00:02]} e6 {[%emt 0:00:03]} 9. O-O {[%emt 0:00:01]} Be7 {[%emt 0:00:02]} 10. Qd2 {[%emt 0:00:19]} O-O {[%emt 0:00:03]} 11. Rad1 {[%emt 0:00:03]} a6 {[%emt 0:00:02]} 12. Nf3 {[%emt 0:00:06]} Qc7 {[%emt 0:00:02]} 13. Nd4 {[%emt 0:00:23]} Ne5 {[%emt 0:00:07]} 14. Bf3 {[%emt 0:00:16]} b5 {[%emt 0:00:06]} 15. b3 {[%emt 0:00:05]} Bb7 {[%emt 0:00:03]} 16. Nce2 {[%emt 0:00:03]} Rac8 {[%emt 0:00:04]} 17. Nf4 {[%emt 0:00:08]} Nxf3+ {[%emt 0:00:03]} 18. gxf3 {[%emt 0:00:06]} e5 {[%emt 0:00:02]} 19. Qg2 {[%emt 0:00:19]} exf4 {[%emt 0:00:03]} 20. Nf5 {[%emt 0:00:02]} Bf6 {[%emt 0:00:03]} 21. Nxd6 {[%emt 0:00:03]} Rcd8 {[%emt 0:00:08]} 22. Nf5 {[%emt 0:00:17]} fxe3 {[%emt 0:00:05]} 23. Nxe3 {[%emt 0:00:03]} Bd4 {[%emt 0:00:04]} 24. Rfe1 {[%emt 0:00:07]} Bxe3+ {[%emt 0:00:03]} 25. Rxe3 {[%emt 0:00:03]} Rxd1+ {[%emt 0:00:02]} 26. Kf2 {[%emt 0:00:03]} Qxc2+ {[%emt 0:00:02]} 27. Re2 {[%emt 0:00:00]} Qc5+ {[%emt 0:00:03]} 28. Kg3 {[%emt 0:00:06]} f5 {[%emt 0:00:01]} 29. Kh3 {[%emt 0:00:05]} fxe4 {[%emt 0:00:02]} 30. fxe4 {[%emt 0:00:06]} Bc8+ {[%emt 0:00:04]} 31. Kh4 {[%emt 0:00:02]} Rf4+ {[%emt 0:00:03]} 32. Kg3 {[%emt 0:00:03]} Qg5# {[%emt 0:00:01]} 0-1

[Event "Queens Festival Final-C 2022"]
[Site "Tornelo"]
[Date "2022.06.25"]
[Round "9.4"]
[White "Sanudula, K M Dahamdi"]
[Black "Vicze, Zsofia"]
[Result "1/2-1/2"]
[ECO "D00"]
[WhiteElo "1710"]
[BlackElo "1749"]
[Annotator "NA RC"]
[PlyCount "63"]
[EventDate "2022.06.24"]
[EventType "tourn"]
[EventCountry "NET"]
[SourceTitle "playchess.com"]
[Source "ChessBase"]
[SourceQuality "1"]
[TimeControl "180+2"]

1. d4 {[%emt 0:00:02]} d5 {[%emt 0:00:04]} 2. e3 {[%emt 0:00:02]} Nf6 {[%emt 0:00:03]} 3. Bd3 {[%emt 0:00:01]} Bg4 {[%emt 0:00:04]} 4. f3 {[%emt 0:00:01]} Bh5 {[%emt 0:00:02]} 5. c3 {[%emt 0:00:01]} e6 {[%emt 0:00:02]} 6. Qb3 {[%emt 0:00:05]} Qc8 {[%emt 0:00:04]} 7. f4 {[%emt 0:00:02]} c5 {[%emt 0:00:03]} 8. Bb5+ {[%emt 0:00:13]} Nc6 {[%emt 0:00:03]} 9. Nf3 {[%emt 0:00:02]} Be7 {[%emt 0:00:05]} 10. Ne5 {[%emt 0:00:08]} a6 {[%emt 0:00:08]} 11. Bxc6+ {[%emt 0:00:04]} bxc6 {[%emt 0:00:01]} 12. Qb6 {[%emt 0:00:03]} cxd4 {[%emt 0:00:25]} 13. cxd4 {[%emt 0:00:34]} c5 {[%emt 0:00:05]} 14. Nc3 {[%emt 0:00:06]} Rb8 {[%emt 0:00:08]} 15. Qa5 {[%emt 0:00:05]} O-O {[%emt 0:00:07]} 16. O-O {[%emt 0:00:04]} Ng4 {[%emt 0:00:07]} 17. Nd3 {[%emt 0:00:40]} cxd4 {[%emt 0:00:10]} 18. exd4 {[%emt 0:00:05]} Bf6 {[%emt 0:00:12]} 19. Ne5 {[%emt 0:00:04]} Nxe5 {[%emt 0:00:05]} 20. fxe5 {[%emt 0:00:02]} Be7 {[%emt 0:00:02]} 21. Qa4 {[%emt 0:00:04]} Rb4 {[%emt 0:00:05]} 22. Qc2 {[%emt 0:00:07]} Rxd4 {[%emt 0:00:04]} 23. Be3 {[%emt 0:00:02]} Rb4 {[%emt 0:00:03]} 24. Qf2 {[%emt 0:00:04]} Qb8 {[%emt 0:00:10]} 25. b3 {[%emt 0:00:25]} Qxe5 {[%emt 0:00:03]} 26. Na4 {[%emt 0:00:02]} Bg6 {[%emt 0:00:13]} 27. Nc5 {[%emt 0:00:03]} Rbb8 {[%emt 0:00:12]} 28. Nd7 {[%emt 0:00:02]} Qh5 {[%emt 0:00:10]} 29. Nxb8 {[%emt 0:00:04]} Rxb8 {[%emt 0:00:02]} 30. Bf4 {[%emt 0:00:09]} Rf8 {[%emt 0:00:04]} 31. Bg3 {[%emt 0:00:02]} Bf6 {[%emt 0:00:12]} 32. Rad1 {[%emt 0:00:06]} 1/2-1/2

[Event "Queens Festival Final-C 2022"]
[Site "Tornelo"]
[Date "2022.06.25"]
[Round "9.5"]
[White "Pragnya H G"]
[Black "Orbe Vivero, Veronica Priscila"]
[Result "1-0"]
[ECO "A01"]
[WhiteElo "1605"]
[BlackElo "1636"]
[Annotator "NA RC"]
[PlyCount "99"]
[EventDate "2022.06.24"]
[EventType "tourn"]
[EventCountry "NET"]
[SourceTitle "playchess.com"]
[Source "ChessBase"]
[SourceQuality "1"]
[TimeControl "180+2"]

1. b3 {[%emt 0:00:02]} Nf6 {[%emt 0:00:06]} 2. Bb2 {[%emt 0:00:02]} g6 {[%emt 0:00:02]} 3. d4 {[%emt 0:00:03]} Bg7 {[%emt 0:00:02]} 4. g3 {[%emt 0:00:04]} d6 {[%emt 0:00:02]} 5. Bg2 {[%emt 0:00:01]} O-O {[%emt 0:00:02]} 6. Nd2 {[%emt 0:00:04]} Nc6 {[%emt 0:00:03]} 7. e4 {[%emt 0:00:02]} Nd7 {[%emt 0:00:03]} 8. Ngf3 {[%emt 0:00:08]} e5 {[%emt 0:00:02]} 9. O-O {[%emt 0:00:12]} Nxd4 {[%emt 0:00:16]} 10. Nxd4 {[%emt 0:00:02]} exd4 {[%emt 0:00:02]} 11. Nf3 {[%emt 0:00:01]} c5 {[%emt 0:00:02]} 12. Rc1 {[%emt 0:00:07]} Ne5 {[%emt 0:00:02]} 13. c3 {[%emt 0:00:02]} dxc3 {[%emt 0:00:09]} 14. Bxc3 {[%emt 0:00:01]} Bg4 {[%emt 0:00:03]} 15. Bxe5 {[%emt 0:00:11]} Bxe5 {[%emt 0:00:09]} 16. h3 {[%emt 0:00:02]} Bxf3 {[%emt 0:00:02]} 17. Bxf3 {[%emt 0:00:01]} Qa5 {[%emt 0:00:09]} 18. Qe2 {[%emt 0:00:07]} Rfe8 {[%emt 0:00:16]} 19. Bg2 {[%emt 0:00:09]} Bd4 {[%emt 0:00:05]} 20. Kh1 {[%emt 0:00:05]} Rab8 {[%emt 0:00:23]} 21. f4 {[%emt 0:00:02]} b5 {[%emt 0:00:01]} 22. f5 {[%emt 0:00:02]} Rb6 {[%emt 0:00:10]} 23. Qf3 {[%emt 0:00:13]} f6 {[%emt 0:00:09]} 24. fxg6 {[%emt 0:00:05]} hxg6 {[%emt 0:00:02]} 25. Qg4 {[%emt 0:00:02]} Kg7 {[%emt 0:00:08]} 26. e5 {[%emt 0:00:11]} Rxe5 {[%emt 0:00:04]} 27. Be4 {[%emt 0:00:01]} Rg5 {[%emt 0:00:11]} 28. Qd7+ {[%emt 0:00:07]} Kh6 {[%emt 0:00:02]} 29. Qd8 {[%emt 0:00:12]} f5 {[%emt 0:00:10]} 30. Bd5 {[%emt 0:00:11]} Qd2 {[%emt 0:00:27]} 31. Rcd1 {[%emt 0:00:15]} Qe3 {[%emt 0:00:06]} 32. Rf3 {[%emt 0:00:12]} Qe5 {[%emt 0:00:05]} 33. Bf7 {[%emt 0:00:33]} Qe4 {[%emt 0:00:09]} 34. Rdf1 {[%emt 0:00:05]} Rh5 {[%emt 0:00:08]} 35. h4 {[%emt 0:00:05]} Ra6 {[%emt 0:00:07]} 36. Qg8 {[%emt 0:00:02]} f4 {[%emt 0:00:03]} 37. Kh2 {[%emt 0:00:15]} Rxa2+ {[%emt 0:00:04]} 38. Kh3 {[%emt 0:00:00]} Qf5+ {[%emt 0:00:03]} 39. g4 {[%emt 0:00:01]} Rxh4+ {[%emt 0:00:05]} 40. Kxh4 {[%emt 0:00:07]} Qc2 {[%emt 0:00:06]} 41. Qxg6+ {[%emt 0:00:08]} Qxg6 {[%emt 0:00:02]} 42. Bxg6 {[%emt 0:00:01]} Kxg6 {[%emt 0:00:02]} 43. Rxf4 {[%emt 0:00:00]} Be5 {[%emt 0:00:02]} 44. R4f2 {[%emt 0:00:03]} Ra3 {[%emt 0:00:01]} 45. Rf3 {[%emt 0:00:03]} Ra2 {[%emt 0:00:01]} 46. R1f2 {[%emt 0:00:00]} Ra1 {[%emt 0:00:02]} 47. g5 {[%emt 0:00:04]} Rh1+ {[%emt 0:00:02]} 48. Rh3 {[%emt 0:00:02]} Rg1 {[%emt 0:00:02]} 49. Ra2 {[%emt 0:00:03]} Rxg5 {[%emt 0:00:04]} 50. Rxa7 {[%emt 0:00:02]} 1-0